fUST/lending_fUST_20250528
["ID","MTS","AMOUNT","RATE_DAILY","PERIOD"]
[362645289,1748385038451,-430.0,0.00019452,2]
[362645291,1748385038462,-430.0,0.00019452,2]
[362645293,1748385038472,-430.0,0.00019452,2]
[362645295,1748385038481,-1925.32,0.00019452,2]
[362645297,1748385038491,-430.0,0.00019452,2]
[362645299,1748385038501,-1372.47,0.00019452,2]
[362645302,1748385038510,-430.0,0.00019452,2]
[362645304,1748385038520,-430.0,0.00019452,2]
[362645306,1748385038529,-430.0,0.00019452,2]
[362645308,1748385038539,-570.45,0.00019452,2]
[362645310,1748385038549,-430.0,0.00019452,2]
[362645312,1748385038559,-430.0,0.00019452,2]
[362645314,1748385038568,-430.0,0.00019452,2]
[362645316,1748385038579,-251.92203999,0.00019452,2]
[362645319,1748385038589,-430.0,0.00019452,2]
[362645320,1748385038599,-430.0,0.00019452,2]
[362645323,1748385038609,-430.0,0.00019452,2]
[362645325,1748385038618,-430.0,0.00019452,2]
[362645326,1748385038628,-989.22,0.00019452,2]
[362645328,1748385038638,-430.0,0.00019452,2]
[362645330,1748385038648,-292.71,0.00019452,2]
[362645332,1748385038658,-430.0,0.00019452,2]
[362645334,1748385038667,-430.0,0.00019452,2]
[362645337,1748385038677,-1091.86,0.00019452,2]
[362645339,1748385038687,-430.0,0.00019452,2]
[362645341,1748385038697,-430.0,0.00019452,2]
[362645343,1748385038707,-430.0,0.00019452,2]
[362645344,1748385038716,-430.0,0.00019452,2]
[362645346,1748385038726,-430.0,0.00019452,2]
[362645348,1748385038735,-644.91,0.00019452,2]
[362645350,1748385038745,-430.0,0.00019452,2]
[362645352,1748385038755,-406.99774531,0.00019452,2]
[362645354,1748385038764,-430.0,0.00019452,2]
[362645356,1748385038774,-430.0,0.00019452,2]
[362645358,1748385038783,-430.0,0.00019452,2]
[362645360,1748385038793,-430.0,0.00019452,2]
[362645362,1748385038802,-430.0,0.00019452,2]
[362645364,1748385038812,-435.52434879,0.00019452,2]
[362645366,1748385038820,-430.0,0.00019452,2]
[362645368,1748385038830,-430.0,0.00019452,2]
[362645370,1748385038839,-430.0,0.00019452,2]
[362645372,1748385038850,-430.0,0.00019452,2]
[362645374,1748385038862,-430.0,0.00019452,2]
[362645376,1748385038872,-430.0,0.00019452,2]
[362645378,1748385038882,-761.15,0.00019452,2]
[362645380,1748385038891,-430.0,0.00019452,2]
[362645382,1748385038901,-430.0,0.00019452,2]
[362645384,1748385038910,-430.0,0.00019452,2]
[362645386,1748385038920,-717.31,0.00019452,2]
[362645388,1748385038930,-430.0,0.00019452,2]
[362645390,1748385038940,-430.0,0.00019452,2]
[362645392,1748385038950,-430.0,0.00019452,2]
[362645394,1748385038960,-430.0,0.00019452,2]
[362645396,1748385038970,-150.58430178,0.00019452,2]
[362645398,1748385038979,-430.0,0.00019452,2]
[362645400,1748385038988,-430.0,0.00019452,2]
[362645402,1748385038998,-430.0,0.00019452,2]
[362645404,1748385039007,-436.00576966,0.00019452,2]
[362645406,1748385039016,-857.73,0.00019452,2]
[362645408,1748385039026,-430.0,0.00019452,2]
[362645410,1748385039035,-155.0,0.00019452,2]
[362645412,1748385039045,-430.0,0.00019452,2]
[362645414,1748385039054,-583.78,0.00019452,2]
[362645416,1748385039064,-336.6361336,0.00019452,2]
[362645418,1748385039074,-345.4640596,0.00019452,2]
[362645420,1748385039084,-430.0,0.00019452,2]
[362645422,1748385039093,-430.0,0.00019452,2]
[362645424,1748385039103,-430.0,0.00019452,2]
[362645426,1748385039113,-430.0,0.00019452,2]
[362645428,1748385039122,-434.42318492,0.00019452,2]
[362645430,1748385039131,-432.22,0.00019452,2]
[362645432,1748385039140,-430.0,0.00019452,2]
[362645434,1748385039150,-432.26426022,0.00019452,2]
[362645436,1748385039160,-430.0,0.00019452,2]
[362645438,1748385039170,-1937.22846601,0.00019521,2]
[362645440,1748385039180,-1041.858631,0.00019553,2]
[362645442,1748385039190,-500.0,0.00019645,2]
[362645444,1748385039200,-500.0,0.00019645,2]
[362645446,1748385039210,-420.0,0.00019667,2]
[362645448,1748385039220,-910.65320868,0.00019694,2]
[362645450,1748385039229,-1000.0,0.00019721,2]
[362645452,1748385039239,-500.0,0.00019721,2]
[362645454,1748385039248,-430.0,0.00019726,2]
[362645456,1748385039258,-430.0,0.00019726,2]
[362645458,1748385039267,-430.0,0.00019726,2]
[362645459,1748385039277,-443.68,0.00019726,2]
[362645460,1748385039286,-260.0,0.00019726,2]
[362645461,1748385039296,-430.0,0.00019726,2]
[362645462,1748385039305,-430.0,0.00019726,2]
[362645463,1748385039314,-430.0,0.00019726,2]
[362645464,1748385039324,-430.0,0.00019726,2]
[362645465,1748385039333,-430.0,0.00019726,2]
[362645467,1748385039343,-430.0,0.00019726,2]
[362645469,1748385039352,-500.0,0.00019726,2]
[362645471,1748385039361,-430.0,0.00019726,2]
[362645473,1748385039372,-430.0,0.00019726,2]
[362645475,1748385039381,-430.0,0.00019726,2]
[362645477,1748385039390,-370.0,0.00019726,2]
[362645479,1748385039399,-430.0,0.00019726,2]
[362645481,1748385039408,-314.78868502,0.00019726,2]
[362645483,1748385039418,-545.22292288,0.00019726,2]
[362645485,1748385039427,-430.0,0.00019726,2]
[362645487,1748385039436,-430.0,0.00019726,2]
[362645489,1748385039446,-430.0,0.00019726,2]
[362645491,1748385039456,-430.0,0.00019726,2]
[362645493,1748385039465,-430.0,0.00019726,2]
[362645495,1748385039474,-398.05,0.00019726,2]
[362645497,1748385039484,-430.0,0.00019726,2]
[362645499,1748385039493,-277.41,0.00019726,2]
[362645501,1748385039502,-430.0,0.00019726,2]
[362645503,1748385039512,-430.0,0.00019726,2]
[362645505,1748385039521,-430.0,0.00019726,2]
[362645507,1748385039531,-553.41,0.00019726,2]
[362645509,1748385039540,-385.13,0.00019726,2]
[362645511,1748385039549,-430.0,0.00019726,2]
[362645513,1748385039559,-430.0,0.00019726,2]
[362645515,1748385039570,-430.0,0.00019726,2]
[362645517,1748385039580,-430.0,0.00019726,2]
[362645519,1748385039589,-430.0,0.00019726,2]
[362645521,1748385039599,-230.0,0.00019726,2]
[362645523,1748385039608,-430.0,0.00019726,2]
[362645525,1748385039617,-430.0,0.00019726,2]
[362645527,1748385039627,-430.0,0.00019726,2]
[362645529,1748385039636,-568.86,0.00019726,2]
[362645531,1748385039646,-1108.25,0.00019726,2]
[362645534,1748385039655,-430.0,0.00019726,2]
[362645536,1748385039665,-430.0,0.00019726,2]
[362645538,1748385039675,-430.0,0.00019726,2]
[362645540,1748385039684,-558.61,0.00019726,2]
[362645542,1748385039694,-332.81,0.00019726,2]
[362645544,1748385039703,-430.0,0.00019726,2]
[362645546,1748385039714,-430.0,0.00019726,2]
[362645548,1748385039725,-1282.69,0.00019726,2]
[362645550,1748385039735,-2428.74,0.00019726,2]
[362645552,1748385039745,-430.0,0.00019726,2]
[362645554,1748385039754,-430.0,0.00019726,2]
[362645556,1748385039764,-430.0,0.00019726,2]
[362645558,1748385039773,-430.0,0.00019726,2]
[362645560,1748385039783,-1925.32,0.00019726,2]
[362645562,1748385039792,-430.0,0.00019726,2]
[362645564,1748385039802,-1372.47,0.00019726,2]
[362645566,1748385039811,-430.0,0.00019726,2]
[362645568,1748385039821,-430.0,0.00019726,2]
[362645570,1748385039830,-570.45,0.00019726,2]
[362645572,1748385039839,-430.0,0.00019726,2]
[362645574,1748385039853,-430.0,0.00019726,2]
[362645577,1748385039862,-430.0,0.00019726,2]
[362645580,1748385039871,-430.0,0.00019726,2]
[362645582,1748385039880,-430.0,0.00019726,2]
[362645586,1748385039891,-430.0,0.00019726,2]
[362645588,1748385039900,-430.0,0.00019726,2]
[362645591,1748385039910,-989.22,0.00019726,2]
[362645593,1748385039919,-161.79,0.00019726,2]
[362645595,1748385039930,-430.0,0.00019726,2]
[362645597,1748385039939,-430.0,0.00019726,2]
[362645599,1748385039948,-1091.86,0.00019726,2]
[362645601,1748385039958,-430.0,0.00019726,2]
[362645603,1748385039968,-430.0,0.00019726,2]
[362645605,1748385039977,-430.0,0.00019726,2]
[362645607,1748385039987,-430.0,0.00019726,2]
[362645609,1748385039998,-644.91,0.00019726,2]
[362645611,1748385040008,-327.65218454,0.00019726,2]
[362645624,1748385040109,-430.0,0.00019726,2]
[362645626,1748385040122,-430.0,0.00019726,2]
[362645628,1748385040132,-430.0,0.00019726,2]
[362645630,1748385040142,-430.0,0.00019726,2]
[362645632,1748385040151,-430.0,0.00019726,2]
[362645634,1748385040161,-430.0,0.00019726,2]
[362645636,1748385040171,-430.0,0.00019726,2]
[362645638,1748385040181,-430.0,0.00019726,2]
[362645640,1748385040191,-430.0,0.00019726,2]
[362645642,1748385040200,-761.15,0.00019726,2]
[362645644,1748385040211,-430.0,0.00019726,2]
[362645646,1748385040220,-285.26,0.00019726,2]
[362645648,1748385040229,-430.0,0.00019726,2]
[362645650,1748385040239,-717.31,0.00019726,2]
[362645652,1748385040248,-430.0,0.00019726,2]
[362645654,1748385040258,-430.0,0.00019726,2]
[362645656,1748385040267,-518.27694409,0.00019726,2]
[362645658,1748385040277,-430.0,0.00019726,2]
[362645661,1748385040287,-430.0,0.00019726,2]
[362645663,1748385040296,-857.73,0.00019726,2]
[362645665,1748385040306,-430.0,0.00019726,2]
[362645667,1748385040315,-290.0,0.00019726,2]
[362645668,1748385040325,-583.78,0.00019726,2]
[362645670,1748385040334,-430.0,0.00019726,2]
[362645673,1748385040343,-430.0,0.00019726,2]
[362645675,1748385040352,-430.0,0.00019726,2]
[362645676,1748385040362,-430.0,0.00019726,2]
[362645679,1748385040372,-1937.22846601,0.00019728,2]
[362645681,1748385040381,-172.0,0.00019763,2]
[362645683,1748385040390,-1937.22846601,0.00019934,2]
[362645685,1748385040400,-701.71,0.00019964,2]
[362645687,1748385040409,-430.0,0.0002,2]
[362645689,1748385040419,-430.0,0.0002,2]
[362645691,1748385040428,-430.0,0.0002,2]
[362645693,1748385040437,-430.0,0.0002,2]
[362645695,1748385040447,-430.0,0.0002,2]
[362645696,1748385040456,-31.98970365,0.0002,2]
[362645711,1748385040586,-398.01029635,0.0002,2]
[362645713,1748385040596,-430.0,0.0002,2]
[362645715,1748385040607,-430.0,0.0002,2]
[362645717,1748385040616,-500.0,0.0002,2]
[362645719,1748385040625,-530.0,0.0002,2]
[362645721,1748385040635,-430.0,0.0002,2]
[362645723,1748385040644,-430.0,0.0002,2]
[362645725,1748385040654,-430.0,0.0002,2]
[362645727,1748385040664,-430.0,0.0002,2]
[362645729,1748385040673,-430.0,0.0002,2]
[362645731,1748385040682,-1015.0,0.0002,2]
[362645733,1748385040692,-430.0,0.0002,2]
[362645735,1748385040701,-430.0,0.0002,2]
[362645737,1748385040711,-430.0,0.0002,2]
[362645740,1748385040721,-430.0,0.0002,2]
[362645742,1748385040730,-430.0,0.0002,2]
[362645744,1748385040739,-430.0,0.0002,2]
[362645745,1748385040749,-430.0,0.0002,2]
[362645747,1748385040759,-430.0,0.0002,2]
[362645749,1748385040768,-430.0,0.0002,2]
[362645751,1748385040777,-430.0,0.0002,2]
[362645754,1748385040787,-430.0,0.0002,2]
[362645755,1748385040796,-430.0,0.0002,2]
[362645757,1748385040805,-542.72,0.0002,2]
[362645759,1748385040814,-430.0,0.0002,2]
[362645762,1748385040824,-430.0,0.0002,2]
[362645764,1748385040834,-568.86,0.0002,2]
[362645766,1748385040843,-1108.25,0.0002,2]
[362645768,1748385040856,-212.8,0.0002,2]
[362645770,1748385040866,-430.0,0.0002,2]
[362645772,1748385040875,-423.3646321,0.0002,2]
[362645774,1748385040884,-558.61,0.0002,2]
[362645776,1748385040895,-430.0,0.0002,2]
[362645778,1748385040904,-430.0,0.0002,2]
[362645780,1748385040914,-1282.69,0.0002,2]
[362645782,1748385040930,-2428.74,0.0002,2]
[362645784,1748385040950,-430.0,0.0002,2]
[362645786,1748385040960,-430.0,0.0002,2]
[362645788,1748385040970,-258.15,0.0002,2]
[362645790,1748385040979,-430.0,0.0002,2]
[362645792,1748385040988,-1925.32,0.0002,2]
[362645794,1748385040999,-430.0,0.0002,2]
[362645796,1748385041008,-1372.47,0.0002,2]
[362645798,1748385041017,-430.0,0.0002,2]
[362645800,1748385041027,-430.0,0.0002,2]
[362645802,1748385041036,-570.45,0.0002,2]
[362645804,1748385041046,-430.0,0.0002,2]
[362645806,1748385041055,-430.0,0.0002,2]
[362645808,1748385041064,-250.0,0.0002,2]
[362645810,1748385041073,-430.0,0.0002,2]
[362645812,1748385041083,-430.0,0.0002,2]
[362645814,1748385041092,-382.75,0.0002,2]
[362645816,1748385041102,-430.0,0.0002,2]
[362645818,1748385041111,-989.22,0.0002,2]
[362645820,1748385041120,-430.0,0.0002,2]
[362645822,1748385041130,-1091.86,0.0002,2]
[362645824,1748385041140,-430.0,0.0002,2]
[362645826,1748385041149,-189.18,0.0002,2]
[362645828,1748385041158,-430.0,0.0002,2]
[362645830,1748385041167,-430.0,0.0002,2]
[362645832,1748385041176,-644.91,0.0002,2]
[362645834,1748385041185,-430.0,0.0002,2]
[362645836,1748385041194,-430.0,0.0002,2]
[362645837,1748385041203,-430.0,0.0002,2]
[362645840,1748385041212,-430.0,0.0002,2]
[362645841,1748385041222,-430.0,0.0002,2]
[362645843,1748385041231,-430.0,0.0002,2]
[362645845,1748385041240,-430.0,0.0002,2]
[362645847,1748385041250,-430.0,0.0002,2]
[362645849,1748385041259,-430.0,0.0002,2]
[362645851,1748385041268,-761.15,0.0002,2]
[362645853,1748385041277,-430.0,0.0002,2]
[362645855,1748385041286,-717.31,0.0002,2]
[362645857,1748385041295,-430.0,0.0002,2]
[362645859,1748385041304,-430.0,0.0002,2]
[362645861,1748385041313,-168.58117976,0.0002,2]
[362645863,1748385041323,-857.73,0.0002,2]
[362645865,1748385041332,-155.0,0.0002,2]
[362645867,1748385041342,-583.78,0.0002,2]
[362645869,1748385041351,-473.08,0.0002,2]
[362645871,1748385041360,-430.0,0.0002,2]
[362645873,1748385041369,-430.0,0.0002,2]
[362645875,1748385041378,-430.0,0.0002,2]
[362645877,1748385041388,-160.0,0.00020026,2]
[362645879,1748385041397,-423.16111059,0.00020026,2]
[362645881,1748385041406,-160.0,0.00020026,2]
[362645883,1748385041415,-160.0,0.00020026,2]
[362645885,1748385041424,-12656.54583329,0.00020026,2]
[362645887,1748385041433,-314.71326974,0.00020026,2]
[362645889,1748385041443,-212.62946336,0.00020026,2]
[362645891,1748385041452,-229.18805157,0.00020026,2]
[362645893,1748385041463,-842.5625,0.00020026,2]
[362645895,1748385041472,-701.71,0.00020027,2]
[362645897,1748385041481,-500.0,0.00020033,2]
[362645899,1748385041491,-1937.22846601,0.00020141,2]
[362645901,1748385041500,-334.334733,0.00020187,2]
[362645903,1748385041509,-1500.0,0.00020268,2]
[362645905,1748385041518,-701.71,0.00020272,2]
[362645907,1748385041527,-430.0,0.00020273,2]
[362645909,1748385041536,-430.0,0.00020273,2]
[362645911,1748385041546,-430.0,0.00020273,2]
[362645913,1748385041555,-565.00232136,0.00020273,2]
[362645915,1748385041564,-500.0,0.00020273,2]
[362645917,1748385041573,-430.0,0.00020273,2]
[362645919,1748385041583,-430.0,0.00020273,2]
[362645921,1748385041592,-430.0,0.00020273,2]
[362645923,1748385041601,-430.0,0.00020273,2]
[362645925,1748385041610,-430.0,0.00020273,2]
[362645927,1748385041619,-430.0,0.00020273,2]
[362645929,1748385041628,-430.0,0.00020273,2]
[362645931,1748385041637,-430.0,0.00020273,2]
[362645933,1748385041646,-430.0,0.00020273,2]
[362645934,1748385041656,-430.0,0.00020273,2]
[362645936,1748385041665,-430.0,0.00020273,2]
[362645938,1748385041674,-430.0,0.00020273,2]
[362645941,1748385041684,-430.0,0.00020273,2]
[362645942,1748385041692,-430.0,0.00020273,2]
[362645945,1748385041702,-430.0,0.00020273,2]
[362645947,1748385041714,-430.0,0.00020273,2]
[362645949,1748385041723,-568.86,0.00020273,2]
[362645951,1748385041733,-1108.25,0.00020273,2]
[362645953,1748385041742,-430.0,0.00020273,2]
[362645955,1748385041751,-558.61,0.00020273,2]
[362645956,1748385041760,-430.0,0.00020273,2]
[362645958,1748385041769,-430.0,0.00020273,2]
[362645960,1748385041778,-1282.69,0.00020273,2]
[362645962,1748385041787,-2428.74,0.00020273,2]
[362645964,1748385041796,-351.806852,0.00020273,2]
[362645966,1748385041806,-430.0,0.00020273,2]
[362645968,1748385041816,-430.0,0.00020273,2]
[362645971,1748385041825,-1925.32,0.00020273,2]
[362645973,1748385041835,-430.0,0.00020273,2]
[362645974,1748385041844,-1372.47,0.00020273,2]
[362645977,1748385041859,-430.0,0.00020273,2]
[362645978,1748385041868,-430.0,0.00020273,2]
[362645981,1748385041885,-570.45,0.00020273,2]
[362645984,1748385041898,-430.0,0.00020273,2]
[362645986,1748385041907,-430.0,0.00020273,2]
[362645988,1748385041916,-430.0,0.00020273,2]
[362645990,1748385041926,-430.0,0.00020273,2]
[362645992,1748385041936,-524.26,0.00020273,2]
[362645994,1748385041946,-989.22,0.00020273,2]
[362645996,1748385041955,-430.0,0.00020273,2]
[362645998,1748385041965,-1091.86,0.00020273,2]
[362646000,1748385041975,-430.0,0.00020273,2]
[362646002,1748385041983,-430.0,0.00020273,2]
[362646003,1748385041993,-396.9,0.00020273,2]
[362646006,1748385042004,-644.91,0.00020273,2]
[362646007,1748385042014,-430.0,0.00020273,2]
[362646009,1748385042026,-430.0,0.00020273,2]
[362646024,1748385042157,-430.0,0.00020273,2]
[362646026,1748385042168,-430.0,0.00020273,2]
[362646028,1748385042177,-430.0,0.00020273,2]
[362646030,1748385042187,-430.0,0.00020273,2]
[362646032,1748385042196,-430.0,0.00020273,2]
[362646034,1748385042206,-430.0,0.00020273,2]
[362646036,1748385042216,-430.0,0.00020273,2]
[362646038,1748385042226,-761.15,0.00020273,2]
[362646040,1748385042235,-430.0,0.00020273,2]
[362646042,1748385042244,-717.31,0.00020273,2]
[362646044,1748385042254,-430.0,0.00020273,2]
[362646046,1748385042263,-430.0,0.00020273,2]
[362646048,1748385042272,-857.73,0.00020273,2]
[362646050,1748385042282,-583.78,0.00020273,2]
[362646052,1748385042291,-430.0,0.00020273,2]
[362646054,1748385042300,-430.0,0.00020273,2]
[362646056,1748385042310,-430.0,0.00020273,2]
[362646058,1748385042320,-910.65320868,0.00020311,2]
[362646060,1748385042329,-1937.22846601,0.00020348,3]
[362646062,1748385042338,-1041.858631,0.00020444,2]
[362646064,1748385042348,-430.0,0.00020547,2]
[362646066,1748385042358,-529.58411708,0.00020547,2]
[362646068,1748385042368,-430.0,0.00020547,2]
[362646070,1748385042377,-500.0,0.00020547,2]
[362646072,1748385042386,-430.0,0.00020547,2]
[362646074,1748385042396,-484.75062947,0.00020547,2]
[362646076,1748385042405,-430.0,0.00020547,2]
[362646078,1748385042414,-430.0,0.00020547,2]
[362646080,1748385042423,-430.0,0.00020547,2]
[362646082,1748385042433,-430.0,0.00020547,2]
[362646084,1748385042443,-430.0,0.00020547,2]
[362646086,1748385042452,-430.0,0.00020547,2]
[362646088,1748385042463,-430.0,0.00020547,2]
[362646090,1748385042473,-430.0,0.00020547,2]
[362646092,1748385042482,-430.0,0.00020547,2]
[362646094,1748385042491,-430.0,0.00020547,2]
[362646095,1748385042500,-430.0,0.00020547,2]
[362646097,1748385042510,-430.0,0.00020547,2]
[362646100,1748385042520,-430.0,0.00020547,2]
[362646102,1748385042530,-430.0,0.00020547,2]
[362646103,1748385042540,-568.86,0.00020547,2]
[362646105,1748385042550,-1108.25,0.00020547,2]
[362646107,1748385042560,-430.0,0.00020547,2]
[362646109,1748385042570,-558.61,0.00020547,2]
[362646111,1748385042580,-430.0,0.00020547,2]
[362646113,1748385042590,-430.0,0.00020547,2]
[362646115,1748385042599,-1282.69,0.00020547,2]
[362646117,1748385042611,-2428.74,0.00020547,2]
[362646119,1748385042622,-430.0,0.00020547,2]
[362646121,1748385042632,-1925.32,0.00020547,2]
[362646123,1748385042643,-1372.47,0.00020547,2]
[362646125,1748385042652,-430.0,0.00020547,2]
[362646127,1748385042662,-430.0,0.00020547,2]
[362646129,1748385042672,-430.0,0.00020547,2]
[362646131,1748385042682,-570.45,0.00020547,2]
[362646133,1748385042692,-430.0,0.00020547,2]
[362646135,1748385042703,-430.0,0.00020547,2]
[362646137,1748385042712,-261.04,0.00020547,2]
[362646139,1748385042722,-430.0,0.00020547,2]
[362646141,1748385042732,-989.22,0.00020547,2]
[362646143,1748385042741,-430.0,0.00020547,2]
[362646145,1748385042751,-1091.86,0.00020547,2]
[362646147,1748385042760,-430.0,0.00020547,2]
[362646149,1748385042769,-206.82,0.00020547,2]
[362646151,1748385042779,-644.91,0.00020547,2]
[362646153,1748385042789,-430.0,0.00020547,2]
[362646154,1748385042798,-430.0,0.00020547,2]
[362646156,1748385042808,-430.0,0.00020547,2]
[362646158,1748385042817,-430.0,0.00020547,2]
[362646160,1748385042827,-430.0,0.00020547,2]
[362646162,1748385042836,-430.0,0.00020547,2]
[362646164,1748385042845,-430.0,0.00020547,2]
[362646166,1748385042859,-430.0,0.00020547,2]
[362646168,1748385042869,-761.15,0.00020547,2]
[362646170,1748385042878,-430.0,0.00020547,2]
[362646172,1748385042887,-717.31,0.00020547,2]
[362646175,1748385042898,-430.0,0.00020547,2]
[362646178,1748385042909,-430.0,0.00020547,2]
[362646181,1748385042919,-857.73,0.00020547,2]
[362646184,1748385042931,-583.78,0.00020547,2]
[362646187,1748385042940,-430.0,0.00020547,2]
[362646190,1748385042949,-430.0,0.00020547,2]
[362646193,1748385042959,-155.0,0.00020548,2]
[362646196,1748385042970,-1937.22846601,0.00020555,3]
[362646199,1748385042979,-1937.22846601,0.00020762,3]
[362646202,1748385042988,-1249.41132836,0.00020816,2]
[362646205,1748385042997,-463.68,0.00020821,2]
[362646208,1748385043007,-500.0,0.00020821,2]
[362646211,1748385043016,-430.0,0.00020821,2]
[362646214,1748385043025,-430.0,0.00020821,2]
[362646216,1748385043034,-430.0,0.00020821,2]
[362646218,1748385043044,-430.0,0.00020821,2]
[362646220,1748385043053,-430.0,0.00020821,2]
[362646223,1748385043064,-266.82,0.00020821,2]
[362646226,1748385043074,-430.0,0.00020821,2]
[362646228,1748385043083,-430.0,0.00020821,2]
[362646230,1748385043093,-467.47720288,0.00020821,2]
[362646232,1748385043103,-430.0,0.00020821,2]
[362646234,1748385043112,-430.0,0.00020821,2]
[362646236,1748385043121,-430.0,0.00020821,2]
[362646238,1748385043131,-430.0,0.00020821,2]
[362646240,1748385043141,-430.0,0.00020821,2]
[362646242,1748385043151,-430.0,0.00020821,2]
[362646244,1748385043161,-568.86,0.00020821,2]
[362646246,1748385043171,-1108.25,0.00020821,2]
[362646248,1748385043180,-430.0,0.00020821,2]
[362646250,1748385043189,-558.61,0.00020821,2]
[362646252,1748385043198,-430.0,0.00020821,2]
[362646255,1748385043208,-430.0,0.00020821,2]
[362646258,1748385043219,-1282.69,0.00020821,2]
[362646261,1748385043228,-2428.74,0.00020821,2]
[362646264,1748385043238,-430.0,0.00020821,2]
[362646266,1748385043247,-1925.32,0.00020821,2]
[362646268,1748385043256,-1372.47,0.00020821,2]
[362646270,1748385043265,-430.0,0.00020821,2]
[362646272,1748385043275,-300.92174277,0.00020821,2]
[362646274,1748385043285,-430.0,0.00020821,2]
[362646276,1748385043295,-570.45,0.00020821,2]
[362646278,1748385043304,-430.0,0.00020821,2]
[362646280,1748385043314,-430.0,0.00020821,2]
[362646282,1748385043323,-430.0,0.00020821,2]
[362646283,1748385043332,-989.22,0.00020821,2]
[362646286,1748385043342,-430.0,0.00020821,2]
[362646287,1748385043351,-1091.86,0.00020821,2]
[362646290,1748385043361,-430.0,0.00020821,2]
[362646291,1748385043371,-644.91,0.00020821,2]
[362646294,1748385043381,-430.0,0.00020821,2]
[362646295,1748385043391,-430.0,0.00020821,2]
[362646297,1748385043401,-430.0,0.00020821,2]
[362646299,1748385043410,-430.0,0.00020821,2]
[362646301,1748385043419,-430.0,0.00020821,2]
[362646303,1748385043428,-430.0,0.00020821,2]
[362646305,1748385043438,-362.87,0.00020821,2]
[362646307,1748385043448,-430.0,0.00020821,2]
[362646309,1748385043457,-761.15,0.00020821,2]
[362646311,1748385043468,-430.0,0.00020821,2]
[362646313,1748385043478,-717.31,0.00020821,2]
[362646315,1748385043488,-430.0,0.00020821,2]
[362646317,1748385043497,-857.73,0.00020821,2]
[362646319,1748385043507,-583.78,0.00020821,2]
[362646321,1748385043517,-430.0,0.00020821,2]
[362646323,1748385043527,-430.0,0.00020821,2]
[362646325,1748385043537,-910.65320868,0.00020927,2]
[362646327,1748385043546,-218.853,0.00020959,2]
[362646329,1748385043556,-1937.22846601,0.00020969,4]
[362646331,1748385043565,-701.71,0.00021094,2]
[362646333,1748385043575,-500.0,0.00021095,2]
[362646335,1748385043585,-430.0,0.00021095,2]
[362646337,1748385043595,-430.0,0.00021095,2]
[362646339,1748385043604,-430.0,0.00021095,2]
[362646340,1748385043614,-430.0,0.00021095,2]